Cogmind - Beta 10.2 @@@ ROGUE MODE // 2021.12.23 @ 20:51:21 Player: Malakyel Result: Destroyed by G-34 Mercenary with Small Laser Performance ------------- Evolutions (1) 500 Regions Visited (2) 400 Robots Destroyed (31) 155 Value Destroyed (749) 749 Prototype IDs (1) 20 Alien Tech Used (0) 0 Bonus (8) 8 TOTAL SCORE: 1832 Bonus ------- High Alert Combat Kills 8 Cogmind --------- Core Integrity 0/400 Matter 178/500 Energy 54/100 System Corruption 23% Temperature Cool (6) Movement Walking (150) Ox1 Location -9/Materials Parts ------- > --- POWER (2) -------- (None) > --- PROPULSION (2) --- Aluminum Leg > --- UTILITY (3) ------ Medium Storage Unit High-capacity Matter Pod Structural Scanner > --- WEAPON (2) ------- Heavy EM Pulse Gun Mini Grenade Launcher > --- INVENTORY (8) ---- Heat Sink Advanced Sensor Array Improved Medium Laser Datajack Mining Laser Peak State ------------ > --- POWER ------------ Ion Engine Light Ion Engine > --- PROPULSION ------- Aluminum Leg Aluminum Leg > --- UTILITY ---------- Medium Storage Unit Improved Terrain Scanner Armor Integrity Analyzer > --- WEAPON ----------- Beam Rifle Improved Medium Laser > --- INVENTORY -------- Light Treads Aluminum Leg Heat Sink High-capacity Matter Pod Advanced Sensor Array Small Laser Datajack Mining Laser [Rating: 15] Favorites ----------- Power Ion Engine Engine Ion Engine Propulsion Aluminum Leg Treads Light Treads Leg Aluminum Leg Wheel Wheel Utility Medium Storage Unit Device Improved Terrain Scanner Storage Medium Storage Unit Processor Armor Integrity Analyzer Weapon Medium Laser Energy Gun Medium Laser Launcher Grenade Launcher Special Weapon Mining Laser Special Melee Weapon Datajack Build | -11 -10 -9 ------- Run | Scr Mat Mat Slots Evolved 2 | . . 2 Power 1 | . . 1 Propulsion . | . . . Utility 1 | . . 1 Weapon . | . . . Parts Attached 38 | 6 8 24 Power 4 | 1 1 2 Engine 4 | 1 1 2 Core . | . . . Reactor . | . . . Propulsion 7 | 2 2 3 Treads 2 | 2 . . Leg 4 | . 2 2 Wheel 1 | . . 1 Hover . | . . . Flight . | . . . Utility 6 | 1 2 3 Device 2 | . 1 1 Storage 3 | 1 1 1 Processor 1 | . . 1 Hackware . | . . . Protection . | . . . Artifact . | . . . Weapon 21 | 2 3 16 Energy Gun 15 | 2 2 11 Energy Cannon . | . . . Ballistic Gun . | . . . Ballistic Cannon . | . . . Launcher 3 | . 1 2 Special Weapon 2 | . . 2 Impact Weapon . | . . . Slashing Weapon . | . . . Piercing Weapon . | . . . Special Melee Weapon 1 | . . 1 Unidentified Prototypes 1 | . . 1 Parts Lost 15 | . 3 12 Power 3 | . . 3 Propulsion 4 | . 1 3 Utility 2 | . . 2 Weapon 6 | . 2 4 Highest Loss Streak 7 | . 2 7 Average Slot Usage (%) 77 | . 84 74 Engine 14 | . 14 14 Treads 5 | . 17 . Leg 11 | . 10 11 Device 8 | . 1 11 Storage 12 | . 14 11 Processor 3 | . . 4 Energy Gun 15 | . 20 13 Launcher 3 | . 5 3 Special Weapon 1 | . . 1 Naked Turns . | . . . Heaviest Build 23 | 11 18 23 Greatest Support 40 | 40 40 20 Greatest Overweight (x) 6 | 1 . 6 Average Overweight (x) . | . . 1 Largest Inventory Capacity 10 | 6 10 8 Average Capacity 7 | 5 7 8 Most Carried 8 | 4 8 8 Average Carried 6 | 3 6 6 Final Capacity 8 | 6 8 8 Final Carried 8 | 4 8 5 Class Distribution -------------------- 100% | Mutant Dominant Class ---------------- Mutant | -10/Materials Mutant | -9/Materials Resources | -11 -10 -9 ----------- Run | Scr Mat Mat Matter Collected 686 | 258 183 245 Remotely . | . . . Salvage Created 780 | . 218 562 Parts 52 | . 13 39 Haulers Intercepted 2 | . . 2 Recyclers Shooed . | . . . Parts Field Recycled . | . . . Retrieved Matter . | . . . Parts Self-Destructed . | . . . Prevented . | . . . Kills | -11 -10 -9 ------- Run | Scr Mat Mat Combat Hostiles Destroyed 19 | . 5 14 Guns 6 | . 2 4 AOE 12 | . 3 9 Classes Destroyed 11 | . 4 7 Worker 2 | . 2 . Builder 3 | . . 3 Tunneler 1 | . 1 . Hauler 2 | . . 2 Recycler 1 | . . 1 Mechanic 1 | . . 1 Operator 1 | . 1 . Watcher 1 | . . 1 Swarmer 4 | . . 4 Grunt 11 | . 5 6 Sentry 4 | . . 4 Best Kill Streak 9 | . 3 9 Combat Bots Only 5 | . 2 5 Max Kills in Single Turn 3 | . 3 3 Gunslinging . | . . . Exploded 2 | . 2 2 Melee . | . . . Uniques/NPCs Destroyed . | . . . Combat | -11 -10 -9 -------- Run | Scr Mat Mat Damage Taken 1974 | . 508 1466 Core 500 | . 93 407 Absorbed by Shields . | . . . Core Remaining (%) 81 | 100 62 . Volleys Fired 98 | 1 30 67 Largest 2 | 2 2 2 Hottest 156 | 90 90 156 Shots Fired 146 | 2 43 101 Gun 104 | 2 34 68 Cannon . | . . . Launcher 28 | . 9 19 Special 14 | . . 14 Kinetic . | . . . Thermal 89 | 1 28 60 Explosive 28 | . 9 19 Electromagnetic 29 | 1 6 22 Robot Hit Streak 4 | . 4 3 Robot Miss Streak 3 | . 2 3 Penetration Max . | . . . Secondary Targets 1 | . 1 . Max Gunslinging Chain 1 | . 1 . Shots Hit Robots 47 | . 20 27 Core Hits 54 | . 19 35 Critical Hits . | . . . Critical Kills . | . . . Critical Parts Destroyed . | . . . Melee Attacks . | . . . Impact . | . . . Slashing . | . . . Piercing . | . . . Sneak Attacks . | . . . Combat Hostiles . | . . . Follow-up Attacks . | . . . Damage Inflicted 2294 | . 615 1679 Guns 677 | . 259 418 Cannons . | . . . Explosions 1606 | . 356 1250 Melee . | . . . Ramming 11 | . . 11 Kinetic . | . . . Thermal 459 | . 218 241 Explosive 1606 | . 356 1250 Electromagnetic 218 | . 41 177 Impact . | . . . Slashing . | . . . Piercing . | . . . Highest Corruption 23 | . . 23 Average Corruption 12 | . . 12 Corruption Purged . | . . . Effects 22 | . . 22 Message Errors 5 | . . 5 Matter Fused 3 | . . 3 Heat Flow Errors 1 | . . 1 Energy Discharges 2 | . . 2 Data Loss (minor) 3 | . . 3 Misdirections 1 | . . 1 Targeting Errors 5 | . . 5 Weapon Failures 2 | . . 2 Overload Shots . | . . . Overflow Damage 33 | . 2 31 Projectiles . | . . . Explosions 33 | . 2 31 Melee . | . . . Knockbacks . | . . . Impact . | . . . Kinetic . | . . . Secondary . | . . . Self-Inflicted Damage 170 | . 35 135 Shots 6 | . 2 4 Rammed . | . . . Targets Rammed 1 | . . 1 Kicked 1 | . . 1 Crushed . | . . . Highest Temperature 465 | 30 465 411 Average Temperature 152 | 18 204 133 Received Heat Transfer 525 | . 264 261 Effects 6 | . 4 2 Shutdowns 4 | . 2 2 Interference 1 | . 1 . Short Circuit 1 | . 1 . Siege Activations . | . . . Robots Corrupted . | . . . Combat Hostiles . | . . . Parts Fried . | . . . Impact Corruptions . | . . . Robots Melted 1 | . . 1 Combat Hostiles 1 | . . 1 Parts Melted 5 | . 2 3 Heat Transferred 1176 | . 606 570 Parts Sabotaged . | . . . Parts Stolen . | . . . Parts Stripped . | . . . Power Chain Reactions . | . . . Missiles Intercepted . | . . . Alert | -11 -10 -9 ------- Run | Scr Mat Mat Peak Influence 446 | . 140 446 Initial 59 | . . 59 Average 73 | . 47 102 Maximum Alert Level 2 | . . 2 Low Security (%) 93 | 100 100 89 Level 1 4 | . . 8 Level 2 1 | . . 2 Level 3 . | . . . Level 4 . | . . . Level 5 . | . . . High Security . | . . . Max Security . | . . . Squads Dispatched 3 | . 2 1 Investigation . | . . . Extermination . | . . . Reinforcement 3 | . 2 1 Assault . | . . . Garrison . | . . . Intercept . | . . . Construction Impeded 1 | . . 1 Haulers Reinforced . | . . . Stealth | -11 -10 -9 --------- Run | Scr Mat Mat Distress Signals 3 | . 1 2 Communications Jammed . | . . . Distress Signals . | . . . Times Spotted 27 | . 11 16 Peak Tracking Total 5 | . 4 5 Tactical Retreats . | . . . Traps | -11 -10 -9 ------- Run | Scr Mat Mat Traps Triggered . | . . . Indirectly . | . . . Trap Hack Attempts . | . . . Triggered . | . . . Disarmed . | . . . Reprogrammed . | . . . Reused . | . . . Traps Extracted . | . . . Installed . | . . . Triggered . | . . . Machines | -11 -10 -9 ---------- Run | Scr Mat Mat Machines Disabled 5 | . . 5 Max in Single Turn 2 | . . 2 Machines Sabotaged . | . . . Garrisons Compromised . | . . . Overloaded Fab Kills . | . . . Fab Network Shutdowns . | . . . Hacking | -11 -10 -9 --------- Run | Scr Mat Mat Machines Accessed 2 | . 2 . Terminals 1 | . 1 . Fabricators . | . . . Repair Stations . | . . . Recycling Units 1 | . 1 . Scanalyzers . | . . . Garrison Access . | . . . Total Hacks 4 | . 4 . Successful 3 | . 3 . Failed 1 | . 1 . Catastrophic . | . . . Database Lockouts . | . . . Manual . | . . . Terminals 3 | . 3 . Fabricators . | . . . Repair Stations . | . . . Recycling Units 1 | . 1 . Scanalyzers . | . . . Garrison Access . | . . . Terminal Hacks 2 | . 2 . Record 1 | . 1 . Locate Traps 1 | . 1 . Fabricator Hacks . | . . . Repair Station Hacks . | . . . Recycling Unit Hacks 1 | . 1 . Retrieve Matter 1 | . 1 . Scanalyzer . | . . . Garrison Access Hacks . | . . . Unauthorized Hacks . | . . . Terminals . | . . . Fabricators . | . . . Repair Stations . | . . . Recycling Units . | . . . Scanalyzers . | . . . Garrison Access . | . . . Data Cores Recovered . | . . . Used . | . . . Hacking Detections . | . . . Full Trace Events . | . . . Feedback Events . | . . . Feedback Blocked . | . . . Robot Schematics Acquired . | . . . Robots Built . | . . . Matter . | . . . Time . | . . . Total Robot Build Rating . | . . . Part Schematics Acquired . | . . . Parts Built . | . . . Matter . | . . . Time . | . . . Total Part Build Rating . | . . . Parts Repaired . | . . . Time . | . . . Parts Recycled . | . . . Recycled Matter . | . . . Retrieved Matter . | . . . Retrieved Components . | . . . Parts Scanalyzed . | . . . Part Schematics Acquired . | . . . Parts Damaged . | . . . Bothacking | -11 -10 -9 ------------ Run | Scr Mat Mat Used RIF Installer . | . . . Robots Hacked . | . . . Non-combat . | . . . Combat . | . . . Robot Hacks Applied . | . . . Relay Couplers Released . | . . . Robots Rewired . | . . . Allies Hacked . | . . . Hacks Repelled . | . . . Allies | -11 -10 -9 -------- Run | Scr Mat Mat Total Allies . | . . . Largest Group . | . . . Highest-Rated Group . | . . . Highest-Rated Ally . | . . . Total Orders . | . . . Ally Attacks . | . . . Total Damage . | . . . Kills . | . . . Allies Corrupted . | . . . Allies Melted . | . . . Intel | -11 -10 -9 ------- Run | Scr Mat Mat Robot Analysis Total . | . . . Derelict Logs Recovered . | . . . Drone Launches . | . . . Drone Recoveries . | . . . Exploration | -11 -10 -9 ------------- Run | Scr Mat Mat Turns Passed 1310 | 172 369 769 Spaces Moved 594 | 98 195 301 Core 89 | 10 . 79 Treads 189 | 88 101 . Legs 298 | . 94 204 Wheels 18 | . . 18 Hover . | . . . Flight . | . . . Fastest Speed 50 | 50 120 90 Average Speed 159 | 152 140 174 Slowest Speed 350 | 160 160 350 Overloaded Moves . | . . . Propulsion Burnouts . | . . . Robots Hopped . | . . . Cave-ins Triggered 2 | . . 2 Exploration Rate (%) 23 | 5 36 28 Regions Visited 2 Branch Regions . Pre-discovered Areas . | . . . Known Exits Taken . | . . . Unknown Exits Taken 2 | 1 1 . Scrap Searched . | . . . Spaces Dug 14 | . . 14 Terrain Destroyed 233 | . 60 173 Melee . | . . . Projectile 14 | . . 14 AOE 219 | . 60 159 Terrain Rammed . | . . . Walls Destroyed . | . . . Machines Disabled . | . . . Actions | -11 -10 -9 --------- Run | Scr Mat Mat Total 779 | 118 247 414 Wait 4 | 4 . . Move 592 | 97 194 301 Hop . | . . . Pick Up 34 | 10 11 13 Fast Attach 2 | . 1 1 Attach 23 | 6 5 12 Detach 2 | . . 2 Swap 13 | . 2 11 Drop 10 | . 4 6 Fire 98 | 1 30 67 Melee . | . . . Ram . | . . . Kick 1 | . . 1 Crush . | . . . Escape Stasis . | . . . Rewire . | . . . Trap . | . . . Miscellaneous . | . . . Route ------- -11/Scrapyard -10/Materials -9/Materials (discovered 1 exit: [*Mat]) History --------- Turn | Location | Event 16 | -11/Scrapyard | Discovered new exit (range 16) 173 | -11/Scrapyard | Entered Materials 308 | -10/Materials | Build established: Mutant 486 | -10/Materials | Discovered new exit (range 16) 542 | -10/Materials | Entered another Materials area 542 | -9/Materials | Evolved 2 slots: Power x1, Utility x1 818 | -9/Materials | Discovered new exit (range 11) 947 | -9/Materials | Crushed by falling debris 947 | -9/Materials | System corruption reached 10% 1004 | -9/Materials | Lost 7 parts (1p2n1u3w) 1171 | -9/Materials | Core integrity fell below 50% 1265 | -9/Materials | Core integrity fell below 20% 1307 | -9/Materials | Crushed by falling debris 1311 | -9/Materials | Destroyed by G-34 Mercenary with Small Laser Last Messages --------------- 01292_ Nuclear Reactor explodes. 01292_ K-01 Serf collects debris. 01294_ G-34 Mercenary destroyed. 01294_ R-06 Scavenger destroyed. 01298_ The unstable cave ceiling collapses. 01298_ K-01 Serf collects debris. 01299_ System corrupted: Hvy. EM Pulse Gun failed to cycle. 01300_ R-06 Scavenger collects Aluminum Leg. 01301_ The unstable cave ceiling collapses. 01301_ System corrupted: Hvy. EM Pulse Gun failed to cycle. 01303_ K-01 Serf collects debris. 01305_ The unstable cave ceiling collapses. 01307_ Crushed by falling debris. 01307_ Imp. Terrain Scanner destroyed. 01307_ System corrupted by crushing effect (+1). 01307_ Lgt. Ion Engine destroyed. 01307_ System corrupted by crushing effect (+5). 01307_ Wheel destroyed. 01307_ System corrupted by crushing effect (+5). 01310_ K-01 Serf collects debris. Map ----- +----------------------------------------------------+ | ?????????????????????????????????????????????????? | | ?????????????????????????????????????????????????? | | ?????????????????????????????????????????????????? | | ?????????????????????????????????????????????????? | | ?????????????????????????????????????????????????? | | ?????????????????????????????????????????????????? | | ????????????????"????????????????????????????????? | | ?????????????????????????????????????????????????? | | ?????????????????????????????????????????????????? | | ??????????#+?????????????????????????????????????? | | ????????### #?????????????????#??????????????????? | | ???? ?# ????#???????#########??????????????? | | ???? # ??????"????? !* ????????????? | | ?????? + ???????????? * [%*????????????? | | ??? ??? ???#???????r % [ [**???????????? | | ??? ??# ?#???????## = ** #???????????? | | ?????[ ## #???????## !|! [! ???????????? | | ???##### %## #######?#* !% # ! ???????????? | | ???# % # #?# %== ?????????? | | ???# " # ### ### ?????????? | | ????? Y" % # ????????? | | ???? ""# ## k ?????????? | | ???# ## # ??????????? | | ???# # # g ## ???????????????? | | ???#####??##### # # ????????????????? | | ?????#????#???## % @ ##?????????????????? | | ??????????????# # ##????#???#????????? | | ???????#??????## #?????????????????? | | ???????????????# # ###????????????????? | | ???????????????## #??#???????????????? | | ???????????#????## # #####?#???????????????? | | ?????????????????# # ######????????????????????? | | ??????##????????## ###?###??#??????#???????????? | | ????????#????#???# ##??????#?????#?????????????? | | ??????#????????#?# #?######??#?????????????????? | | ???????????????### #### # ##??#????#???????????? | | ????????#????????# ## # #####?#??????????????? | | ???????#??????#??# # #?????????????????? | | ???????????????### # #?????????????????? | | ???????????????#?# # #?????????????????? | | ?????????????????# + """ ##?#??????????#???? | | ?????#??#?#?#??#?# # """ " #?#???????????????? | | ?????????#??????## # """"" #?????????????????? | | ??????#??#?????### # """ #???????#???#?????? | | ?????????????????# # ##??????????#?????? | | ??????????????#??# ###########????????????????#? | | ????????????#????# #?#????? ????????#???#??????? | | ????##?##????????# ###?###?? ? ????????????#???? | | ?????????????????# ###??#????? ? ???????###???#? | | ???????????????#?# #??#?????? ?????????? #????? | +----------------------------------------------------+ Best States ------------- Heat Dissipation 28 Energy Generation 15 Energy Capacity 275 Matter Stores 300 Matter Capacity 500 Sight Range 16 Terrain Scan Range 16 Terrain Scan Density 10 Evasion (%) 42 Armor Integrity Analysis 33 Recoil Reduction 2 Item Schematics ----------------- None Robot Schematics ------------------ None Fabricated ------------ Nothing Alien Tech Used ----------------- None Achievements -------------- It's Just You Challenges ------------ None Game ------ Seed ShieldAutogunNetwork Manual? 0 Play Time 00:28:01 Cumulative 4.9 hours Start 2021.12.22 @ 19:29:02 End 2021.12.23 @ 20:51:21 Sessions 2 Manual Loads 0 Difficulty Rogue Special Mode None Game No. 8 Rogue 8 Adventurer 0 Explorer 0 Win Type - Total 0 Types 0/0/0/0/0/0/0/0/0 Lore% 2 Gallery% 8 Achievement% 7 Wizard Run 0 Options --------- ASCII 0 Keyboard 0 Movement Mouse Keybinds 0 Fullscreen 2 Font 18/SmallcapsGlow Map View 76x50 Tactical HUD 1 Map Filters NONE Filters NONE Steam 1 RUN: 809c6fd1-dfc1-48a7-a0d6-ed148d9ec500